bitfinex-derivatives/quotes_BTCF0:USTF0_20241210
["timestamp","ask_amount","ask_price","bid_price","bid_amount"]
[1733865147038,0.00809319,96650.0,96649.0,0.051699]
[1733865147332,0.0517,96648.0,96647.0,0.00827]
[1733865147845,0.0517,96648.0,96620.0,0.06202639]
[1733865147846,0.051704,96642.0,96641.0,0.051704]
[1733865148138,0.051704,96642.0,96623.0,0.051713]
[1733865148139,0.0584,96649.0,96643.0,0.051703]
[1733865148335,0.051702,96644.0,96643.0,0.051703]
[1733865148529,0.045022,96644.0,96629.0,0.012468]
[1733865148729,0.09240796,96636.0,96635.0,0.051706]
[1733865148926,0.051706,96637.0,96635.0,0.051706]
[1733865149126,0.051706,96637.0,96636.0,0.051706]
[1733865149327,0.10304888,96640.0,96639.0,0.051705]
[1733865149639,0.412503,96642.0,96640.0,0.051704]
[1733865149640,0.413143,96642.0,96640.0,0.051704]
[1733865149835,0.051704,96641.0,96640.0,0.051704]
[1733865150927,0.051705,96638.0,96637.0,0.00462]
[1733865151234,0.15854676,96641.0,96637.0,0.00462]
[1733865151424,0.006,96641.0,96640.0,0.051704]
[1733865151927,0.00068,96642.0,96637.0,0.00462]
[1733865152127,0.00068,96642.0,96641.0,0.051704]
[1733865152442,0.00073319,96650.0,96649.0,0.051699]
[1733865152629,0.113286,96675.0,96649.0,0.051699]
[1733865152630,0.15409898,96667.0,96666.0,0.05169]
[1733865152822,0.3608,96676.0,96659.0,0.3608]
[1733865152823,0.15254676,96668.0,96659.0,0.3608]
[1733865153030,0.123445,96674.0,96659.0,0.3608]
[1733865153234,0.12345901,96674.0,96673.0,0.051687]
[1733865153641,0.3608,96676.0,96662.0,0.051692]
[1733865153829,0.3608,96676.0,96675.0,0.051686]
[1733865154842,0.12345392,96687.0,96686.0,0.05168]
[1733865155039,0.12345392,96688.0,96675.0,0.051686]
[1733865155242,0.12345392,96688.0,96687.0,0.051679]
[1733865155440,0.051677,96692.0,96689.0,0.051678]
[1733865155742,0.051677,96692.0,96690.0,0.051678]
[1733865156335,0.15254676,96693.0,96674.0,0.02586]
[1733865156623,0.12341733,96688.0,96675.0,0.051686]
[1733865156822,0.12541466,96688.0,96687.0,0.051679]
[1733865157209,0.12539967,96688.0,96687.0,0.051679]
[1733865157412,0.002,96688.0,96687.0,0.051679]
[1733865157718,0.12340201,96689.0,96687.0,0.051679]
[1733865158211,0.051678,96690.0,96687.0,0.051679]
[1733865158212,0.17508001,96690.0,96687.0,0.051679]
[1733865158518,0.17508001,96690.0,96688.0,0.051679]
[1733865159013,0.12340201,96689.0,96688.0,0.051679]
[1733865159203,0.17508001,96690.0,96688.0,0.051679]
[1733865159412,0.12337692,96689.0,96688.0,0.051679]
[1733865159911,0.17505492,96690.0,96688.0,0.001]
[1733865160106,0.056678,96690.0,96688.0,0.001]
[1733865160805,0.051678,96690.0,96688.0,0.001]
[1733865161008,0.005,96689.0,96688.0,0.002]
[1733865161508,0.005,96689.0,96688.0,0.3628]
[1733865161708,0.1,96700.0,96698.0,0.051673]
[1733865161907,0.1,96700.0,96699.0,0.3608]
[1733865162114,0.05,96700.0,96699.0,0.42085671]
[1733865162318,0.22640311,96720.0,96699.0,0.3608]
[1733865162612,0.12335423,96717.0,96698.0,0.051673]
[1733865162803,0.17501723,96718.0,96696.0,0.3608]
[1733865163005,0.12335423,96718.0,96716.0,0.051663]
[1733865163210,0.12335423,96718.0,96696.0,0.3608]
[1733865163211,0.10304888,96720.0,96718.0,0.051663]
[1733865163404,0.12335423,96721.0,96698.0,0.00155107]
[1733865163609,0.10304888,96710.0,96698.0,0.00155107]
[1733865163904,0.3608,96719.0,96715.0,0.051664]
[1733865164109,0.3608,96719.0,96698.0,0.00155107]
[1733865164310,0.3608,96719.0,96708.0,0.051668]
[1733865164311,0.10304888,96710.0,96708.0,0.051668]
[1733865164514,0.12335423,96717.0,96708.0,0.051668]
[1733865164713,0.412466,96711.0,96708.0,0.051668]
[1733865165219,0.412466,96711.0,96698.0,0.00155107]
[1733865165403,0.004,96710.0,96698.0,0.00155107]
[1733865165809,0.004,96710.0,96708.0,0.001]
[1733865166010,0.055667,96710.0,96708.0,0.001]
[1733865166712,0.055667,96710.0,96704.0,0.05167]
[1733865166713,0.05167,96705.0,96704.0,0.05167]
[1733865168212,0.004,96705.0,96704.0,0.05167]
[1733865168820,0.051669,96707.0,96706.0,0.051669]
[1733865171821,0.054669,96707.0,96706.0,0.051669]
[1733865172712,0.06573887,96707.0,96706.0,0.051669]
[1733865172921,0.06573887,96707.0,96698.0,0.00155107]
[1733865172922,0.051673,96699.0,96698.0,0.00155107]
[1733865173121,0.412473,96699.0,96698.0,0.05322407]
[1733865173421,0.412473,96699.0,96698.0,0.05783407]
[1733865175318,0.414473,96699.0,96698.0,0.05783407]
[1733865175915,0.414473,96699.0,96698.0,0.00616107]
[1733865176843,0.414473,96699.0,96698.0,0.00461]
[1733865177336,0.414473,96699.0,96698.0,0.056283]
[1733865178141,0.414473,96699.0,96698.0,0.00461]
[1733865180042,0.414473,96699.0,96698.0,0.056283]
[1733865180043,0.3628,96699.0,96698.0,0.056283]
[1733865180436,0.414473,96699.0,96698.0,0.056283]
[1733865180730,0.3628,96699.0,96698.0,0.056283]
[1733865181136,0.002,96699.0,96698.0,0.056283]
[1733865181341,0.48415423,96711.0,96709.0,0.051667]
[1733865181546,0.051667,96710.0,96709.0,0.051667]
[1733865181844,0.17524216,96710.0,96709.0,0.051667]
[1733865182031,0.051667,96710.0,96709.0,0.051667]
[1733865182234,0.12366407,96710.0,96709.0,0.051667]
[1733865184249,0.12766407,96710.0,96709.0,0.051667]
[1733865184634,0.07766407,96710.0,96709.0,0.051667]
[1733865184834,0.003,96710.0,96709.0,0.712467]
[1733865185041,0.1196947,96717.0,96716.0,0.051664]
[1733865185237,0.15254676,96742.0,96735.0,0.051654]
[1733865185436,0.051649,96743.0,96735.0,0.051654]
[1733865186439,0.051649,96743.0,96735.0,0.077494]
[1733865186942,0.01051384,96746.0,96735.0,0.077494]
[1733865186943,0.05320442,96736.0,96735.0,0.02584]
[1733865187144,0.05320442,96736.0,96727.0,0.18386292]
[1733865187338,0.05320442,96736.0,96711.0,0.30648723]
[1733865187339,0.051658,96727.0,96726.0,0.051658]
[1733865188347,0.051656,96731.0,96730.0,0.051656]
[1733865188741,0.00755142,96736.0,96735.0,0.051654]
[1733865188941,0.05920442,96736.0,96735.0,0.051654]
[1733865189145,0.051656,96731.0,96730.0,0.051656]
[1733865189655,0.00755142,96736.0,96735.0,0.051654]
[1733865189656,0.05920442,96736.0,96735.0,0.051654]
[1733865190239,0.05320442,96736.0,96735.0,0.051654]
[1733865191150,0.06120442,96736.0,96735.0,0.053654]
[1733865191450,0.06120442,96736.0,96735.0,0.002]
[1733865191661,0.07183751,96736.0,96735.0,0.002]
[1733865192955,0.07028609,96736.0,96735.0,0.002]
[1733865193654,0.059653,96736.0,96735.0,0.053654]
[1733865194948,0.008,96736.0,96735.0,0.053654]
[1733865196058,0.008,96736.0,96735.0,0.06425482]
[1733865196547,0.008,96736.0,96735.0,0.42505482]
[1733865196849,0.412446,96749.0,96735.0,0.42405482]
[1733865197060,0.412446,96749.0,96748.0,0.051647]
[1733865198054,0.3668,96749.0,96748.0,0.051647]
[1733865198455,0.3668,96749.0,96748.0,0.052647]
[1733865199658,0.3608,96749.0,96748.0,0.052647]
[1733865199964,0.3608,96749.0,96748.0,0.053647]
[1733865199965,0.3698,96749.0,96748.0,0.053647]
[1733865200951,0.421446,96749.0,96748.0,0.053647]
[1733865203159,0.421446,96749.0,96748.0,0.058267]
[1733865203455,0.3698,96749.0,96748.0,0.058267]
[1733865203665,0.00155064,96769.0,96768.0,0.051636]
[1733865204053,0.051628,96783.0,96775.0,0.051632]
[1733865204248,0.3608,96787.0,96775.0,0.051632]
[1733865206155,0.3608,96787.0,96754.0,0.051643]
[1733865206156,0.3608,96778.0,96751.0,0.18355195]
[1733865206362,0.3608,96763.0,96762.0,0.051639]
[1733865206658,0.051636,96768.0,96767.0,0.051636]
[1733865206864,0.00439,96776.0,96775.0,0.051632]
[1733865207160,0.00439,96776.0,96770.0,0.051634]
[1733865207161,0.051635,96771.0,96770.0,0.051634]
[1733865207860,0.00039,96776.0,96754.0,0.4224]
[1733865208049,0.00039,96776.0,96769.0,0.051634]
[1733865208050,0.15468388,96770.0,96769.0,0.051634]
[1733865208362,0.051635,96770.0,96769.0,0.051634]
[1733865209161,0.051635,96770.0,96754.0,0.43296133]
[1733865209357,0.3608,96769.0,96754.0,0.43296133]
[1733865209659,0.051639,96763.0,96762.0,0.051639]
[1733865210460,0.051632,96775.0,96762.0,0.051639]
[1733865210461,0.3608,96788.0,96762.0,0.3608]
[1733865210660,0.3608,96788.0,96775.0,0.051632]
[1733865210661,0.052022,96776.0,96775.0,0.051632]
[1733865211258,0.051634,96772.0,96771.0,0.051634]
[1733865211561,0.412434,96772.0,96771.0,0.051634]
[1733865212556,0.416434,96772.0,96771.0,0.051634]
[1733865213159,0.416434,96772.0,96755.0,0.18510217]
[1733865213361,0.051637,96767.0,96766.0,0.051637]
[1733865214863,0.051637,96767.0,96766.0,0.052637]
[1733865215070,0.055637,96767.0,96766.0,0.052637]
[1733865217766,0.004,96767.0,96766.0,0.052637]
[1733865220071,0.055636,96767.0,96756.0,0.051642]
[1733865220369,0.051642,96756.0,96755.0,0.00155022]
[1733865221572,0.051642,96756.0,96748.0,0.18817195]
[1733865221573,0.3608,96757.0,96748.0,0.00462]
[1733865221768,0.3608,96749.0,96748.0,0.056267]
[1733865222070,0.3608,96757.0,96748.0,0.00462]
[1733865222273,0.3608,96757.0,96756.0,0.051642]
[1733865222472,0.412442,96757.0,96756.0,0.051642]
[1733865222973,0.051642,96757.0,96756.0,0.051642]
[1733865223771,0.003,96757.0,96754.0,0.18396979]
[1733865223974,0.051645,96751.0,96750.0,0.051645]
[1733865224360,0.003,96757.0,96746.0,0.2432708]
[1733865224361,0.051647,96747.0,96746.0,0.2432708]
[1733865225470,0.3608,96747.0,96744.0,0.2432708]
[1733865225774,0.116948,96746.0,96744.0,0.2432708]
[1733865225976,0.116948,96746.0,96745.0,0.00462]
[1733865226182,0.051648,96745.0,96744.0,0.42812487]
[1733865226475,0.051648,96745.0,96744.0,0.32846487]
[1733865227065,0.051648,96745.0,96744.0,0.03096487]
[1733865227269,0.051648,96745.0,96736.0,0.30648723]
[1733865227270,0.051652,96737.0,96736.0,0.30648723]
[1733865227566,0.412452,96737.0,96736.0,0.33232723]
[1733865227968,0.412452,96737.0,96736.0,0.03482723]
[1733865228365,0.712452,96737.0,96736.0,2.3e-07]
[1733865228571,0.712452,96737.0,96729.0,0.00926618]
[1733865228572,0.051656,96730.0,96729.0,0.00926618]
[1733865228763,0.051664,96716.0,96705.0,0.0616]
[1733865229079,0.412464,96716.0,96715.0,0.42707039]
[1733865229665,0.412464,96716.0,96715.0,0.42623039]
[1733865230075,0.413464,96716.0,96715.0,0.42623039]
[1733865231667,0.42431388,96716.0,96715.0,0.42623039]
[1733865231876,0.051665,96714.0,96713.0,0.00507]
[1733865232774,0.051665,96714.0,96713.0,0.056735]
[1733865233879,0.052665,96714.0,96713.0,0.056735]
[1733865234976,0.003,96714.0,96713.0,0.056735]
[1733865235769,0.052665,96714.0,96713.0,0.056735]
[1733865235973,0.054665,96714.0,96713.0,0.056735]
[1733865236763,0.054665,96714.0,96713.0,0.00507]
[1733865236973,0.053665,96714.0,96713.0,0.00507]
[1733865237176,0.054665,96714.0,96713.0,0.00507]
[1733865237577,0.053665,96714.0,96713.0,0.00507]
[1733865238378,0.415465,96714.0,96713.0,0.00507]
[1733865238580,0.415465,96714.0,96692.0,0.051676]
[1733865238581,0.051673,96698.0,96692.0,0.051676]
[1733865238770,0.051673,96698.0,96689.0,0.0632]
[1733865238771,0.412473,96698.0,96689.0,0.0632]
[1733865239169,0.412473,96698.0,96682.0,0.1261]
[1733865239367,0.773273,96698.0,96682.0,0.1261]
[1733865239571,0.7216,96698.0,96682.0,0.0613]
[1733865239776,0.412481,96683.0,96682.0,0.0613]
[1733865240567,0.41256395,96683.0,96682.0,0.0613]
[1733865240972,0.41256395,96683.0,96682.0,0.120982]
[1733865241382,0.05176395,96683.0,96682.0,0.120982]
[1733865241880,0.3608,96690.0,96682.0,0.0743]
[1733865242083,0.051679,96688.0,96687.0,0.051678]
[1733865243574,0.3608,96690.0,96689.0,0.051678]
[1733865243971,0.412478,96690.0,96689.0,0.051678]
[1733865244174,0.10304888,96697.0,96687.0,0.006]
[1733865244374,0.15472288,96697.0,96696.0,0.051674]
[1733865244585,0.051672,96701.0,96697.0,0.051674]
[1733865244784,0.10304888,96706.0,96697.0,0.051674]
[1733865244986,0.412473,96698.0,96697.0,0.051674]
[1733865246174,0.412473,96698.0,96697.0,0.118474]
[1733865246386,0.412473,96698.0,96697.0,0.120474]
[1733865246686,0.10304888,96706.0,96705.0,0.05167]
[1733865246879,0.051669,96706.0,96705.0,0.05167]
[1733865247477,0.3608,96710.0,96705.0,0.05167]
[1733865247788,0.3608,96719.0,96706.0,0.0616]
[1733865247973,0.051663,96718.0,96716.0,0.051663]
[1733865248179,0.051663,96717.0,96706.0,0.0616]
[1733865248379,0.3608,96719.0,96718.0,0.051663]
[1733865249286,0.051665,96714.0,96706.0,0.0616]
[1733865249474,0.051665,96714.0,96713.0,0.051665]
[1733865249678,0.051667,96710.0,96708.0,0.051668]
[1733865249879,0.051667,96710.0,96709.0,0.051667]
[1733865251386,0.051664,96716.0,96715.0,0.051664]
[1733865251991,0.3618,96719.0,96707.0,0.0669]
[1733865252175,0.051664,96715.0,96714.0,0.051664]
[1733865253384,0.052664,96715.0,96714.0,0.051664]
[1733865254383,0.001,96715.0,96714.0,0.051664]
[1733865254591,0.3608,96719.0,96718.0,0.051663]
[1733865255993,0.18440942,96729.0,96723.0,0.05166]
[1733865256188,0.18440942,96729.0,96723.0,0.3608]
[1733865256384,0.18440942,96729.0,96728.0,0.051657]
[1733865256585,0.21514433,96744.0,96743.0,0.051649]
[1733865256983,0.05151854,96749.0,96732.0,0.3608]
[1733865257181,0.051648,96746.0,96744.0,0.051649]
[1733865257481,0.15437162,96745.0,96744.0,0.051649]
[1733865258486,0.051646,96749.0,96746.0,0.051648]
[1733865258690,0.05026707,96748.0,96746.0,0.051648]
[1733865259382,0.15424976,96747.0,96746.0,0.051648]
[1733865260083,0.15424976,96747.0,96740.0,0.05165]
[1733865260286,0.17504942,96742.0,96740.0,0.05165]
[1733865260593,0.05165,96742.0,96741.0,0.05165]
[1733865261587,0.12339942,96744.0,96743.0,0.051649]
[1733865263292,0.051647,96747.0,96734.0,0.1275]
[1733865263293,0.12339942,96745.0,96734.0,0.1275]
[1733865263483,0.12339942,96745.0,96744.0,0.051649]
[1733865264501,0.17504742,96746.0,96745.0,0.051648]
[1733865264891,0.05165,96741.0,96740.0,0.051651]
[1733865265490,0.17504742,96746.0,96745.0,0.051648]
[1733865265695,0.051648,96746.0,96745.0,0.051648]
[1733865266195,0.3608,96758.0,96734.0,0.0617]
[1733865266388,0.051639,96762.0,96752.0,0.051644]
[1733865266587,0.00155065,96766.0,96752.0,0.051644]
[1733865266783,0.00155065,96766.0,96765.0,0.051637]
[1733865268092,0.00155065,96766.0,96753.0,0.3608]
[1733865268296,0.05164,96761.0,96760.0,0.051639]
[1733865269801,0.05164,96761.0,96760.0,0.052639]
[1733865270994,0.05364,96761.0,96760.0,0.052639]
[1733865271800,0.002,96761.0,96760.0,0.052639]
[1733865271996,0.14595381,96761.0,96760.0,0.052639]
[1733865272903,0.09431381,96761.0,96760.0,0.052639]
[1733865273099,0.002,96761.0,96760.0,0.052639]
[1733865274500,0.002,96761.0,96760.0,0.001]
[1733865274501,0.09435072,96761.0,96760.0,0.001]
[1733865274700,0.05364,96761.0,96760.0,0.001]
[1733865275605,0.17678402,96761.0,96760.0,0.001]
[1733865275796,0.05364,96761.0,96760.0,0.001]
[1733865276493,0.17681382,96761.0,96760.0,0.001]
[1733865277095,0.12517382,96761.0,96760.0,0.05264]
[1733865277397,0.002,96761.0,96760.0,0.05264]
[1733865277595,0.12517382,96761.0,96760.0,0.05264]
[1733865277800,0.002,96761.0,96760.0,0.05264]
[1733865278603,0.05364,96761.0,96760.0,0.05264]
[1733865279105,0.17689739,96761.0,96760.0,0.05264]
[1733865279304,0.05364,96761.0,96760.0,0.05264]
[1733865279603,0.05364,96761.0,96760.0,0.001]
[1733865281201,0.05364,96761.0,96760.0,0.05264]
[1733865283591,0.05364,96761.0,96760.0,0.001]
[1733865284502,0.10650381,96761.0,96760.0,0.001]
[1733865284802,0.1065038,96761.0,96760.0,0.001]
[1733865285001,0.1065038,96761.0,96760.0,0.05264]
[1733865286607,0.106572,96761.0,96760.0,0.05264]
[1733865286799,0.29138976,96761.0,96760.0,0.05264]
[1733865287313,0.106572,96761.0,96760.0,0.05264]
[1733865289407,0.29138976,96761.0,96760.0,0.05264]
[1733865290010,0.054932,96761.0,96753.0,0.3608]
[1733865290214,0.051642,96757.0,96756.0,0.051641]
[1733865290544,0.104574,96757.0,96756.0,0.051641]
[1733865292314,0.23717667,96757.0,96756.0,0.051641]
[1733865292521,0.05165,96743.0,96742.0,0.05165]
[1733865292714,0.104582,96743.0,96742.0,0.11194139]
[1733865293014,0.104582,96743.0,96742.0,0.05165]
[1733865294130,0.05165,96741.0,96740.0,0.05320144]
[1733865294646,0.104582,96741.0,96740.0,0.05320144]
[1733865296139,0.054932,96741.0,96740.0,0.05320144]
[1733865297248,0.054932,96741.0,96740.0,0.11356581]
[1733865297449,0.106582,96741.0,96740.0,0.06191481]
[1733865297751,0.106582,96741.0,96740.0,0.00155044]
[1733865298146,0.1061445,96741.0,96740.0,0.00155044]
[1733865298740,0.1051445,96741.0,96740.0,0.00155044]
[1733865299648,0.1041445,96741.0,96740.0,0.00155044]
[1733865299950,0.1051445,96741.0,96740.0,0.00155044]
[1733865300335,0.1061445,96741.0,96740.0,0.00155044]
[1733865300765,0.1061445,96741.0,96740.0,0.05320144]
[1733865301046,0.0544945,96741.0,96740.0,0.05320144]
[1733865301754,0.002,96741.0,96740.0,0.05320144]
[1733865303554,0.001,96741.0,96740.0,0.05320144]
[1733865304852,0.05265,96741.0,96740.0,0.00155044]
[1733865305763,0.41345,96741.0,96740.0,0.00155044]
[1733865306046,0.41345,96741.0,96714.0,0.3608]
[1733865306047,0.05166,96723.0,96722.0,0.05166]
[1733865306243,0.051656,96730.0,96718.0,0.051662]
[1733865306244,0.412456,96730.0,96718.0,0.051662]
[1733865306444,0.05166,96722.0,96718.0,0.051662]
[1733865306646,0.41246,96722.0,96716.0,0.051664]
[1733865307043,0.41246,96722.0,96712.0,0.01057988]
[1733865307351,0.41246,96722.0,96721.0,0.05175664]
[1733865307549,0.3608,96730.0,96721.0,0.05175664]
[1733865307749,0.412456,96730.0,96729.0,0.051657]
[1733865307951,0.23707726,96739.0,96738.0,0.051652]
[1733865308148,0.23707726,96739.0,96722.0,0.11526]
[1733865308350,0.18542526,96739.0,96738.0,0.051652]
[1733865309354,0.18642526,96739.0,96738.0,0.051652]
[1733865310144,0.18742526,96739.0,96738.0,0.051652]
[1733865310962,0.18642526,96739.0,96738.0,0.051652]
[1733865313055,0.09369909,96739.0,96738.0,0.051652]
[1733865313359,0.00155094,96743.0,96742.0,0.05165]
[1733865313865,0.12359879,96747.0,96733.0,0.3608]
[1733865313866,0.12359879,96747.0,96746.0,0.051648]
[1733865314066,0.12359879,96749.0,96748.0,0.051647]
[1733865314360,0.3608,96750.0,96748.0,0.051647]
[1733865315751,0.413446,96750.0,96748.0,0.051647]
[1733865316061,0.3618,96750.0,96748.0,0.051647]
[1733865316448,0.051651,96740.0,96738.0,0.052652]
[1733865316751,0.051651,96740.0,96738.0,0.001]
[1733865317246,0.051652,96738.0,96736.0,0.051653]
[1733865317546,0.051652,96738.0,96721.0,9.564e-05]
[1733865317547,0.3608,96738.0,96721.0,9.564e-05]
[1733865317745,0.05166,96723.0,96721.0,9.564e-05]
[1733865317937,0.17535492,96723.0,96721.0,9.564e-05]
[1733865318233,0.05166,96723.0,96721.0,9.564e-05]
[1733865318429,0.0618,96722.0,96721.0,9.564e-05]
[1733865318819,0.11204552,96722.0,96721.0,9.564e-05]
[1733865319220,0.21631589,96722.0,96721.0,0.00409564]
[1733865319921,0.21631589,96722.0,96699.0,0.3608]
[1733865319922,0.051661,96721.0,96699.0,0.3608]
[1733865320128,0.46384888,96716.0,96699.0,0.3608]
[1733865320343,0.0609,96715.0,96711.0,0.051666]
[1733865320520,0.0609,96715.0,96704.0,0.05167]
[1733865320722,0.051671,96703.0,96699.0,0.3608]
[1733865320926,0.051671,96703.0,96698.0,0.051673]
[1733865320927,0.05177761,96703.0,96698.0,0.051673]
[1733865321121,0.05177761,96703.0,96702.0,0.00855093]
[1733865321722,0.12362443,96719.0,96702.0,0.36935093]
[1733865321927,0.10304888,96720.0,96716.0,0.051663]
[1733865322335,0.051663,96717.0,96711.0,0.420466]
[1733865322532,0.051665,96713.0,96711.0,0.3688]
[1733865322839,0.051665,96713.0,96712.0,0.051666]
[1733865323023,0.051665,96713.0,96711.0,0.420466]
[1733865323533,0.051665,96713.0,96711.0,0.421466]
[1733865323830,0.12362443,96732.0,96712.0,0.051666]
[1733865324032,0.12362443,96735.0,96721.0,0.3608]
[1733865324241,0.3608,96738.0,96722.0,0.0597]
[1733865324425,0.3608,96738.0,96736.0,0.051653]
[1733865326230,0.3608,96738.0,96736.0,0.06213511]
[1733865326431,0.3608,96738.0,96737.0,0.0601]
[1733865326829,0.3618,96738.0,96737.0,0.0601]
[1733865327337,0.3608,96738.0,96737.0,0.0601]
[1733865327534,0.00155092,96743.0,96737.0,0.0601]
[1733865327741,0.00155092,96743.0,96742.0,0.05165]
[1733865328031,0.17526743,96756.0,96753.0,0.051644]
[1733865328539,0.051643,96756.0,96754.0,0.051643]
[1733865329529,0.051643,96756.0,96737.0,0.0601]
[1733865329530,0.3608,96757.0,96744.0,0.01031613]
[1733865329737,0.3608,96757.0,96733.0,0.00155059]
[1733865329738,0.3608,96745.0,96733.0,0.00155059]
[1733865330025,0.3608,96745.0,96734.0,0.051654]
[1733865330026,0.052652,96738.0,96734.0,0.051654]
[1733865330232,0.052652,96738.0,96736.0,0.051653]
[1733865330233,0.001,96738.0,96736.0,0.051653]
[1733865330543,0.001,96738.0,96737.0,0.3608]
[1733865330739,0.004,96756.0,96737.0,0.42111247]
[1733865330931,0.051644,96752.0,96750.0,0.051645]
[1733865331243,0.051644,96752.0,96737.0,0.3608]
[1733865331244,0.36340001,96757.0,96753.0,0.051643]
[1733865331433,0.051643,96755.0,96753.0,0.051643]
[1733865331933,0.3608,96757.0,96737.0,0.3608]
[1733865331934,0.051645,96751.0,96748.0,0.051646]
[1733865332134,0.051645,96751.0,96737.0,0.3618]
[1733865332332,0.3608,96757.0,96737.0,0.3618]
[1733865332737,0.051644,96754.0,96750.0,0.051645]
[1733865333135,0.051645,96752.0,96750.0,0.051645]
[1733865334128,0.051645,96752.0,96750.0,0.001]
[1733865334941,0.055645,96752.0,96750.0,0.052645]
[1733865336133,0.00155059,96776.0,96753.0,0.051644]
[1733865336328,0.00155059,96776.0,96775.0,0.051632]
[1733865337834,0.00755059,96776.0,96775.0,0.052632]
[1733865339936,0.00355059,96776.0,96775.0,0.051632]
[1733865340841,0.00155059,96776.0,96775.0,0.051632]
[1733865342741,0.051623,96792.0,96775.0,0.051632]
[1733865342950,0.051623,96792.0,96791.0,0.051624]
[1733865343643,0.01061898,96793.0,96792.0,0.051623]
[1733865343837,0.56384888,96800.0,96793.0,0.051623]
[1733865343838,0.051621,96796.0,96793.0,0.051623]
[1733865344038,0.4608,96800.0,96799.0,0.051619]
[1733865344244,0.4608,96800.0,96784.0,0.051627]
[1733865344440,0.56384888,96800.0,96799.0,0.051619]
[1733865344637,0.4608,96800.0,96799.0,0.051619]
[1733865345040,0.4608,96800.0,96793.0,0.3608]
[1733865345041,0.3608,96824.0,96812.0,0.051612]
[1733865345234,0.1194,96830.0,96812.0,0.051612]
[1733865345235,0.1194,96830.0,96812.0,0.3608]
[1733865345840,0.22244888,96830.0,96812.0,0.3608]
[1733865346040,0.051608,96821.0,96811.0,0.051613]
[1733865346243,0.051608,96821.0,96820.0,0.3608]
[1733865346543,0.051608,96821.0,96817.0,0.05161]
[1733865346943,0.0609,96829.0,96817.0,0.05161]
[1733865347245,0.051609,96819.0,96817.0,0.05161]
[1733865347546,0.3608,96825.0,96820.0,0.001]
[1733865347746,0.051608,96821.0,96820.0,0.001]
[1733865348135,0.051608,96821.0,96816.0,0.05161]
[1733865348136,0.3608,96825.0,96817.0,0.001]
[1733865348339,0.051609,96819.0,96817.0,0.001]
[1733865348942,0.051609,96819.0,96817.0,0.052609]
[1733865349640,0.051609,96819.0,96817.0,0.051609]
[1733865350450,0.051609,96819.0,96817.0,0.052609]
[1733865352142,0.051609,96819.0,96772.0,0.23462488]
[1733865352143,0.3608,96825.0,96801.0,0.412418]
[1733865352352,0.3608,96809.0,96788.0,0.01049948]
[1733865352646,0.3608,96809.0,96776.0,0.3608]
[1733865352647,0.051619,96800.0,96797.0,0.05162]
[1733865352959,0.05162,96798.0,96797.0,0.05162]
[1733865354943,0.1269,96808.0,96785.0,0.3608]
[1733865355247,0.051622,96795.0,96793.0,0.051622]
[1733865356646,0.051622,96795.0,96785.0,0.3608]
[1733865356647,0.051626,96787.0,96785.0,0.3608]
[1733865356839,0.051629,96782.0,96780.0,0.051629]
[1733865357351,0.051634,96772.0,96769.0,0.051635]
[1733865357546,0.051634,96772.0,96768.0,0.3608]
[1733865357742,0.051634,96772.0,96768.0,0.37131743]
[1733865357948,0.051634,96772.0,96768.0,0.37223743]
[1733865359956,0.051634,96772.0,96768.0,0.36172]
[1733865360252,0.051634,96772.0,96753.0,0.0664]
[1733865360652,0.051634,96772.0,96758.0,0.051641]
[1733865360850,0.051634,96772.0,96771.0,0.00555005]
[1733865361349,0.052634,96772.0,96771.0,0.00155005]
[1733865363752,0.052634,96772.0,96771.0,0.00260501]
[1733865364349,0.052634,96772.0,96771.0,0.00286875]
[1733865365159,0.052634,96772.0,96771.0,0.00296749]
[1733865366261,0.052634,96772.0,96771.0,0.00141744]
[1733865367459,0.052634,96772.0,96750.0,0.00155041]
[1733865367460,0.051645,96751.0,96750.0,0.00155041]
[1733865368557,0.051651,96739.0,96738.0,0.3609005]
[1733865370248,0.051651,96739.0,96738.0,0.3679005]
[1733865371057,0.051651,96739.0,96738.0,0.3699005]
[1733865371258,0.15380403,96767.0,96766.0,0.051637]
[1733865371455,0.15380403,96767.0,96766.0,0.412437]
[1733865371853,0.051632,96776.0,96770.0,0.051635]
[1733865372259,0.22914888,96790.0,96770.0,0.051635]
[1733865372650,0.01045517,96789.0,96770.0,0.051635]
[1733865372862,0.10304888,96780.0,96770.0,0.051635]
[1733865373057,0.051636,96767.0,96766.0,0.3608]
[1733865373262,0.051636,96767.0,96765.0,0.01030893]
[1733865373465,0.051632,96776.0,96770.0,0.051635]
[1733865373763,0.3608,96788.0,96770.0,0.051635]
[1733865374563,0.051633,96774.0,96770.0,0.051635]
[1733865374767,0.051633,96774.0,96773.0,0.051633]
[1733865374962,0.051636,96769.0,96768.0,0.051635]
[1733865376167,0.053636,96769.0,96768.0,0.051635]
[1733865376659,0.053636,96769.0,96756.0,0.1279]
[1733865376660,0.3628,96769.0,96742.0,0.3608]
[1733865376863,0.051644,96753.0,96745.0,0.051648]
[1733865377159,0.051645,96751.0,96745.0,0.051648]
[1733865377368,0.051645,96751.0,96738.0,0.0001005]
[1733865377757,0.3608,96753.0,96738.0,0.0001005]
[1733865377758,0.051651,96739.0,96738.0,0.0001005]
[1733865379058,0.051651,96739.0,96738.0,0.0061005]
[1733865379261,0.051651,96739.0,96738.0,0.0151005]
[1733865380354,0.051651,96739.0,96718.0,0.051662]
[1733865380355,0.051662,96720.0,96718.0,0.051662]
[1733865380562,0.051662,96720.0,96707.0,0.02112991]
[1733865380766,0.051662,96720.0,96716.0,0.051664]
[1733865381067,0.051662,96720.0,96714.0,0.01044062]
[1733865381467,0.0517382,96720.0,96714.0,0.01044062]
[1733865381760,0.0517382,96720.0,96719.0,0.00455091]